Cogmind - Beta 13 @@@ ROGUE MODE // 2024.04.04 @ 12:29:58 Player: SPRING Result: Destroyed by D-53 Grenadier with Mini Grenade Launcher Performance ------------- Evolutions (0) 0 Regions Visited (4) 800 Robots Destroyed (25) 125 Value Destroyed (438) 438 Prototype IDs (0) 0 Alien Tech Used (0) 0 Bonus (371) 371 TOTAL SCORE: 1734 Bonus ------- Follower Combat Kills 81 Aligned with FarCom 300 Friendly Fire -10 Cogmind --------- Core Integrity 0/250 Matter 236/300 Energy 100/100 System Corruption 0% Temperature Cool (0) Movement Treading (160) Location -9/Mines Parts ------- > --- POWER (1) -------- (None) > --- PROPULSION (2) --- Light Treads Light Treads > --- UTILITY (2) ------ Large Storage Unit Signal Interpreter > --- WEAPON (2) ------- (None) > --- INVENTORY (15) --- Light Nuclear Core Light Nuclear Core Light Fission Core Light Treads Light Treads Small Storage Unit Machine Analyzer Modified TNC Utility Shielding Assault Rifle Light Assault Rifle Light Assault Rifle Light Assault Rifle Mining Laser Peak State ------------ > --- POWER ------------ Ion Engine > --- PROPULSION ------- Light Treads Light Treads > --- UTILITY ---------- Large Storage Unit Signal Interpreter > --- WEAPON ----------- Grenade Launcher Rocket Launcher > --- INVENTORY -------- Light Nuclear Core Light Nuclear Core Light Fission Core Light Treads Light Treads Small Storage Unit Machine Analyzer Modified TNC Utility Shielding EM Pulse Gun Assault Rifle Light Assault Rifle Light Assault Rifle Light Assault Rifle Mining Laser [Rating: 11] Favorites ----------- Power Ion Engine Engine Ion Engine Power Core Light Nuclear Core Propulsion Light Treads Treads Light Treads Utility Large Storage Unit Device Improved Terrain Scanner Storage Large Storage Unit Processor Signal Interpreter Weapon Assault Rifle Energy Gun Medium Laser Ballistic Gun Assault Rifle Launcher Rocket Launcher Special Weapon Mining Laser Build | -11 -10 -10 -10 -9 ------- Run | Yrd Mat Min Exi Min Slots Evolved . | . . . . . Power . | . . . . . Propulsion . | . . . . . Utility . | . . . . . Weapon . | . . . . . Parts Attached 25 | 7 11 4 . 3 Power 5 | 1 1 3 . . Engine 4 | 1 1 2 . . Core 1 | . . 1 . . Reactor . | . . . . . Propulsion 5 | 2 3 . . . Treads 5 | 2 3 . . . Leg . | . . . . . Wheel . | . . . . . Hover . | . . . . . Flight . | . . . . . Utility 4 | 2 2 . . . Device 1 | 1 . . . . Storage 2 | 1 1 . . . Processor 1 | . 1 . . . Hackware . | . . . . . Protection . | . . . . . Artifact . | . . . . . Weapon 11 | 2 5 1 . 3 Energy Gun 2 | 1 . . . 1 Energy Cannon . | . . . . . Ballistic Gun 6 | 1 4 1 . . Ballistic Cannon . | . . . . . Launcher 2 | . . . . 2 Special Weapon 1 | . 1 . . . Impact Weapon . | . . . . . Slashing Weapon . | . . . . . Piercing Weapon . | . . . . . Special Melee Weapon . | . . . . . Unidentified Prototypes . | . . . . . Parts Lost 8 | . 4 . . 4 Power 2 | . 1 . . 1 Propulsion 2 | . 2 . . . Utility . | . . . . . Weapon 4 | . 1 . . 3 Highest Loss Streak 4 | . 3 . . 4 To Critical Strikes . | . . . . . Average Slot Usage (%) 99 | . 99 100 100 98 Engine 13 | . 13 14 14 14 Treads 27 | . 27 28 28 28 Device 6 | . 11 . . . Storage 14 | . 14 14 14 14 Processor 7 | . 2 14 14 14 Energy Gun 1 | . 3 . . . Ballistic Gun 25 | . 24 28 28 19 Naked Turns . | . . . . . Heaviest Build 32 | 15 30 29 28 32 Greatest Support 40 | 40 40 40 40 40 Greatest Overweight (x) 1 | . 1 . . . Average Overweight (x) . | . . . . . Largest Inventory Capacity 15 | 8 15 15 15 15 Average Capacity 14 | 7 13 15 15 15 Most Carried 15 | 5 15 15 15 15 Average Carried 12 | 2 10 14 14 14 Final Capacity 15 | 8 15 15 15 15 Final Carried 15 | 5 15 15 15 14 Class Distribution -------------------- 100% | Mutant Dominant Class ---------------- Mutant | -10/Materials Mutant | -10/Mines Mutant | -10/Exiles Mutant | -9/Mines Resources | -11 -10 -10 -10 -9 ----------- Run | Yrd Mat Min Exi Min Matter Collected 877 | 288 477 112 . . Remotely . | . . . . . Salvage Created 814 | 108 580 126 . . Parts 52 | 12 32 6 . 2 Haulers Intercepted 1 | . 1 . . . Recyclers Shooed 3 | . 2 . . 1 Parts Field Recycled . | . . . . . Retrieved Matter . | . . . . . Parts Self-Destructed . | . . . . . Prevented . | . . . . . Kills | -11 -10 -10 -10 -9 ------- Run | Yrd Mat Min Exi Min Combat Hostiles Destroyed 12 | . 8 4 . . Guns 12 | . 8 4 . . Classes Destroyed 9 | 2 6 . . 1 Worker 1 | . . . . 1 Tunneler 2 | 2 . . . . Hauler 1 | . 1 . . . Recycler 3 | 1 2 . . . Mechanic 1 | . 1 . . . Operator 2 | . 2 . . . Watcher 3 | . 3 . . . Swarmer 6 | . 4 2 . . Grunt 6 | . 4 2 . . Best Kill Streak 3 | 3 3 2 . 1 Combat Bots Only 3 | . 3 2 . . Max Kills in Single Turn 1 | 1 1 1 . 1 Gunslinging . | . . . . . Exploded . | . . . . . Melee . | . . . . . Uniques/NPCs Destroyed . | . . . . . Combat | -11 -10 -10 -10 -9 -------- Run | Yrd Mat Min Exi Min Hostile Shots Fired 168 | . 121 35 . 12 Missed 52 | . 36 13 . 3 Damage Taken 1488 | . 801 240 . 447 Core 251 | . 88 31 . 132 Absorbed by Shields . | . . . . . Core Remaining (%) 100 | 100 . . . . Volleys Fired 96 | 6 74 12 . 4 Largest 2 | 2 2 2 . 2 Hottest 100 | 70 100 40 . 73 Shots Fired 190 | 12 147 24 . 7 Gun 184 | 12 146 24 . 2 Cannon . | . . . . . Launcher 5 | . . . . 5 Special 1 | . 1 . . . Kinetic 159 | 6 129 24 . . Thermal 24 | 6 18 . . . Explosive 5 | . . . . 5 Electromagnetic 2 | . . . . 2 Robot Hit Streak 9 | 3 9 7 . 4 Robot Miss Streak 4 | 2 4 3 . 2 Penetration Max . | . . . . . Secondary Targets 1 | . . 1 . . Max Gunslinging Chain 1 | . . 1 . . Shots Hit Robots 113 | 6 88 15 . 4 Core Hits 49 | 4 31 6 . 8 Critical Kills . | . . . . . Critical Parts Destroyed . | . . . . . Critical Strikes 2 | . 2 . . . Burn 2 | . 2 . . . Melee Attacks . | . . . . . Impact . | . . . . . Slashing . | . . . . . Piercing . | . . . . . Sneak Attacks . | . . . . . Combat Hostiles . | . . . . . Follow-up Attacks . | . . . . . Damage Inflicted 1601 | 78 1158 205 . 160 Guns 1449 | 78 1158 201 . 12 Cannons . | . . . . . Explosions 148 | . . . . 148 Melee . | . . . . . Ramming 4 | . . 4 . . Kinetic 1247 | 14 1032 201 . . Thermal 190 | 64 126 . . . Explosive 148 | . . . . 148 Electromagnetic 12 | . . . . 12 Impact . | . . . . . Slashing . | . . . . . Piercing . | . . . . . Highest Corruption . | . . . . . Average Corruption . | . . . . . Corruption Purged . | . . . . . Corruption Blocked . | . . . . . Overload Shots . | . . . . . Overflow Damage 3 | . . . . 3 Projectiles . | . . . . . Explosions 3 | . . . . 3 Melee . | . . . . . Knockbacks . | . . . . . Impact . | . . . . . Kinetic . | . . . . . Secondary . | . . . . . Self-Inflicted Damage . | . . . . . Shots . | . . . . . Rammed 1 | . . 1 . . Targets Rammed 1 | . . 1 . . Kicked . | . . . . . Crushed . | . . . . . Highest Temperature 123 | 54 123 2 . 24 Average Temperature 29 | 24 37 2 . 9 Received Heat Transfer 294 | . 213 81 . . Siege Activations . | . . . . . Robots Corrupted . | . . . . . Combat Hostiles . | . . . . . Parts Fried . | . . . . . Impact Corruptions . | . . . . . Robots Melted . | . . . . . Combat Hostiles . | . . . . . Parts Melted 2 | . . 2 . . Heat Transferred 703 | 185 518 . . . Parts Sabotaged . | . . . . . Parts Stolen . | . . . . . Parts Stripped . | . . . . . Power Chain Reactions . | . . . . . Alert | -11 -10 -10 -10 -9 ------- Run | Yrd Mat Min Exi Min Peak Influence 141 | 15 132 141 . 7 Initial 10 | . 9 10 . . Average 49 | 6 37 89 . . Maximum Alert Level . | . . . . . Low Security (%) 100 | 100 100 100 . 100 Level 1 . | . . . . . Level 2 . | . . . . . Level 3 . | . . . . . Level 4 . | . . . . . Level 5 . | . . . . . High Security . | . . . . . Max Security . | . . . . . Squads Dispatched 2 | . 2 . . . Investigation . | . . . . . Extermination . | . . . . . Reinforcement 2 | . 2 . . . Assault . | . . . . . Garrison . | . . . . . Intercept . | . . . . . Searches Triggered . | . . . . . Construction Impeded . | . . . . . Haulers Reinforced . | . . . . . Active Scanning Responses . | . . . . . Cargo Convoy Interrupts . | . . . . . Stealth | -11 -10 -10 -10 -9 --------- Run | Yrd Mat Min Exi Min Distress Signals 2 | . 2 . . . Communications Jammed . | . . . . . Distress Signals . | . . . . . Times Spotted 29 | . 17 10 . 2 Peak Tracking Total 5 | . 5 4 . 2 Tactical Retreats . | . . . . . Traps | -11 -10 -10 -10 -9 ------- Run | Yrd Mat Min Exi Min Traps Triggered . | . . . . . Indirectly . | . . . . . Trap Hack Attempts . | . . . . . Triggered . | . . . . . Disarmed . | . . . . . Reprogrammed . | . . . . . Reused . | . . . . . Traps Extracted . | . . . . . Installed . | . . . . . Triggered . | . . . . . Machines | -11 -10 -10 -10 -9 ---------- Run | Yrd Mat Min Exi Min Machines Disabled 2 | . 1 1 . . Max in Single Turn 1 | . 1 . . . Machines Repaired . | . . . . . Machines Dismantled . | . . . . . Machines Sabotaged . | . . . . . Overloaded Fab Kills . | . . . . . Hacking | -11 -10 -10 -10 -9 --------- Run | Yrd Mat Min Exi Min Machines Accessed 6 | . 6 . . . Terminals 5 | . 5 . . . Fabricators . | . . . . . Repair Stations . | . . . . . Recycling Units 1 | . 1 . . . Scanalyzers . | . . . . . Garrison Access . | . . . . . Total Hacks 23 | . 23 . . . Successful 10 | . 10 . . . Failed 13 | . 13 . . . Catastrophic 3 | . 3 . . . Database Lockouts . | . . . . . Manual 21 | . 20 . 1 . Terminals 21 | . 21 . . . Fabricators . | . . . . . Repair Stations . | . . . . . Recycling Units 2 | . 2 . . . Scanalyzers . | . . . . . Garrison Access . | . . . . . Terminal Hacks 9 | . 9 . . . Record 1 | . 1 . . . Robot Analysis 1 | . 1 . . . Terminal Index 2 | . 2 . . . Locate Traps 1 | . 1 . . . Maintenance Status 1 | . 1 . . . Surveillance Status 1 | . 1 . . . Coupling Status 1 | . 1 . . . Zone Layout 1 | . 1 . . . Fabricator Hacks . | . . . . . Repair Station Hacks . | . . . . . Recycling Unit Hacks 1 | . 1 . . . Report Inventory 1 | . 1 . . . Scanalyzer . | . . . . . Garrison Access Hacks . | . . . . . Unauthorized Hacks . | . . . . . Terminals . | . . . . . Fabricators . | . . . . . Repair Stations . | . . . . . Recycling Units . | . . . . . Scanalyzers . | . . . . . Garrison Access . | . . . . . Data Cores Recovered . | . . . . . Used . | . . . . . Hacking Detections 6 | . 6 . . . Full Trace Events 4 | . 4 . . . Feedback Events . | . . . . . Feedback Blocked . | . . . . . Robot Schematics Acquired . | . . . . . Robots Built . | . . . . . Authchips . | . . . . . Time . | . . . . . Total Robot Build Rating . | . . . . . Part Schematics Acquired . | . . . . . Parts Built . | . . . . . Authchips . | . . . . . Time . | . . . . . Total Part Build Rating . | . . . . . Parts Repaired . | . . . . . Time . | . . . . . Parts Recycled . | . . . . . Recycled Matter . | . . . . . Retrieved Matter . | . . . . . Retrieved Components . | . . . . . Parts Scanalyzed . | . . . . . Part Schematics Acquired . | . . . . . Parts Damaged . | . . . . . Bothacking | -11 -10 -10 -10 -9 ------------ Run | Yrd Mat Min Exi Min Used RIF Installer . | . . . . . Robots Hacked . | . . . . . Non-combat . | . . . . . Combat . | . . . . . Robot Hacks Applied . | . . . . . Relay Couplers Released . | . . . . . Fabnet Peak Effective % . | . . . . . Robots Rewired . | . . . . . Allies Hacked . | . . . . . Hacks Repelled . | . . . . . Allies | -11 -10 -10 -10 -9 -------- Run | Yrd Mat Min Exi Min Total Allies 3 | . . 3 . . Largest Group 3 | . . 3 1 1 Highest-Rated Group 40 | . . 40 16 16 Highest-Rated Ally 16 | . . 16 16 16 Total Orders . | . . . . . Ally Attacks 37 | . . 36 . 1 Total Damage 345 | . . 328 . 17 Kills 5 | . . 5 . . Allies Corrupted . | . . . . . Allies Melted . | . . . . . Intel | -11 -10 -10 -10 -9 ------- Run | Yrd Mat Min Exi Min Robot Analysis Total 1 | . 1 . . . Derelict Logs Recovered 1 | . . 1 . . Drone Launches . | . . . . . Drone Recoveries . | . . . . . Exploration | -11 -10 -10 -10 -9 ------------- Run | Yrd Mat Min Exi Min Turns Passed 2884 | 119 1479 768 367 151 Spaces Moved 1540 | 58 739 435 224 84 Core 6 | 6 . . . . Treads 1534 | 52 739 435 224 84 Legs . | . . . . . Wheels . | . . . . . Hover . | . . . . . Flight . | . . . . . Fastest Speed 50 | 50 160 160 160 160 Average Speed 159 | 148 160 160 160 160 Slowest Speed 240 | 160 240 160 160 160 Overloaded Moves . | . . . . . Propulsion Burnouts . | . . . . . Robots Hopped . | . . . . . Cave-ins Triggered . | . . . . . Exploration Rate (%) 53 | 4 91 94 60 20 Regions Visited 4 Branch Regions 3 Pre-discovered Areas . | . . . . . Known Exits Taken 3 | . 1 1 1 . Unknown Exits Taken 1 | 1 . . . . Scrap Searched 2 | . . 1 . 1 Spaces Dug 1 | . 1 . . . Terrain Destroyed 24 | . 1 . . 23 Melee . | . . . . . Projectile 1 | . 1 . . . AOE 23 | . . . . 23 Terrain Rammed . | . . . . . Walls Destroyed . | . . . . . Machines Disabled . | . . . . . Actions | -11 -10 -10 -10 -9 --------- Run | Yrd Mat Min Exi Min Total 1773 | 75 887 485 234 92 Wait 63 | . 32 23 7 1 Move 1536 | 57 738 434 223 84 Hop . | . . . . . Pick Up 32 | 5 21 4 2 . Fast Attach 8 | 7 1 . . . Attach 4 | . 3 . . 1 Detach . | . . . . . Swap 13 | . 7 4 . 2 Drop 20 | . 11 7 2 . Fire 96 | 6 74 12 . 4 Melee . | . . . . . Ram . | . . . . . Kick . | . . . . . Crush 1 | . . 1 . . Escape Stasis . | . . . . . Rewire . | . . . . . Trap . | . . . . . Miscellaneous . | . . . . . Route ------- -11/Scrapyard -10/Materials (discovered 4 exits: *Mat x3 / *Min) -10/Mines (discovered 3 exits: *Mat x2 / *Exi) -10/Exiles (discovered 2 exits: *Min x2) -9/Mines History --------- Turn | Location | Event 6 | -11/Scrapyard | Discovered new exit (range 14) 120 | -11/Scrapyard | Entered Materials 328 | -10/Materials | Build established: Mutant 346 | -10/Materials | Discovered new exit (range 12) 843 | -10/Materials | Discovered new exit (range 9) 878 | -10/Materials | Discovered new exit (range 15) 1146 | -10/Materials | Lost 3 parts (2n1w) 1382 | -10/Materials | Discovered new exit (range 15) 1506 | -10/Materials | Identified exit to Materials 1594 | -10/Materials | Identified exit to Mines 1599 | -10/Materials | Entered Mines 1603 | -10/Mines | Assisted by bots powering up and referring to "LRC-V3" 1652 | -10/Mines | Learned Materials terminal intel 1682 | -10/Mines | Discovered exit to Materials (range 7) 1778 | -10/Mines | Deemed a non-threat by the Exiles lab entrance 1780 | -10/Mines | Discovered new exit (range 5) 1785 | -10/Mines | Identified exit to Exiles 2178 | -10/Mines | Received a Rocket Launcher from a helpful Derelict 2218 | -10/Mines | Discovered exit to Materials (range 11) 2367 | -10/Mines | Entered Exiles 2367 | -10/Exiles | Accompanied by 1 ally 2392 | -10/Exiles | Discovered new exit (range 15) 2409 | -10/Exiles | Met 8R-AWN 2431 | -10/Exiles | Met EX-HEX 2479 | -10/Exiles | Met EX-BIN 2497 | -10/Exiles | Aligned with FarCom system 2499 | -10/Exiles | Given EX-Vault access code 2537 | -10/Exiles | Opened EX-Vault 2550 | -10/Exiles | Found Prototype Processor 2588 | -10/Exiles | Warned to stay clear of 0b10 Research branches 2603 | -10/Exiles | Exiles lab attacked by MAIN.C 2717 | -10/Exiles | Discovered new exit (range 14) 2733 | -10/Exiles | Identified exit to Mines 2734 | -10/Exiles | Left Exiles lab with Modified TNC 2734 | -10/Exiles | Entered Mines 2734 | -9/Mines | Accompanied by 1 ally 2839 | -9/Mines | Assembled infested the area 2873 | -9/Mines | Core integrity fell below 50% 2879 | -9/Mines | Core integrity fell below 20% 2885 | -9/Mines | Destroyed by D-53 Grenadier with Mini Grenade Launcher Last Messages --------------- (Burn). 02870_ Trooper 1b destroyed. 02871_ U-05 Engineer lays Concrete. 02872_ Grenade Launcher destroyed. 02872_ R-06 Scavenger destroyed. 02873_ The unstable cave ceiling collapses. 02873_ U-05 Engineer builds a Wall. 02874_ The unstable cave ceiling collapses. 02876_ U-05 Engineer lays Concrete. 02878_ The unstable cave ceiling collapses. 02878_ EM Pulse Gun destroyed. 02878_ Rocket Launcher destroyed. 02879_ The unstable cave ceiling collapses. 02881_ Ion Engine destroyed. 02881_ W1-DM0 destroyed. 02882_ K-01 Serf collects debris. 02883_ The unstable cave ceiling collapses. 02883_ U-05 Engineer lays Concrete. 02885_ The unstable cave ceiling collapses. 02885_ U-05 Engineer lays Concrete. Map ----- +----------------------------------------------------+ | ?????????????????????????????????????????????????? | | ?????????????????????????????????????????????????? | | ?????????????????????????????????????????????????? | | ?????????????????????????????????????????????????? | | ?????????????????????????????????????????????????? | | ?????????????????????????????????????????????????? | | ?????????????????????????????????????????????????? | | ?????????????????????????????????????????????????? | | ?????????????????????????????????????????????????? | | ?????????????????????????????????????????????????? | | ???????????????????????????????????? #???????????? | | ?????????????????????????###???????? ##?????????? | | ?????????????????????????# ##?????? #?????????? | | ??????????????? ??????## ##???? ??????????? | | ??????????????? #????## #???# ???????????? | | ??????????????? ##?## #### ????????????? | | ?????????????? % ## < ?????????????? | | ?????????????? ??????????????? | | ?????????????? ???????????????? | | ?????????????? ! ##???????????????? | | ????????????? d d # ##??????????????? | | ????????????????? #??????????????? | | ???????????????????????# #???????????????? | | ???????????????????????#=* #???????????????? | | ???????????????????????# # #???????????????? | | ???????????????????????#u@ # #???????????????? | | ???????????????????????# ##???????????????? | | ???????????????????????#k ## ###????????????????? | | ?????????????????####### #?###??????????????????? | | ?????????????????# #??????????????????????? | | ?????????????????# #??????????????????????? | | ?????????????????# #######??????????????????????? | | ?????????????????# #????????????????????????????? | | ?????????????????# #????????????????????????????? | | ?????????????????# #????????????????????????????? | | ?????????????????# #????????????????????????????? | | ?????????????????# #????????????????????????????? | | ???????????????### ##???????????????????????????? | | ??????????????##% ##??????????????????????????? | | ???????####???# ! ###????????????????????????? | | ######## ##### #????????????????????????? | | # ## #???????????????????????? | | # !! # ### ##???????????????????????? | | # ! # ###??####????????????????????????? | | # !! # #????????????????????????????????? | | # !! ## #####????????????????????????????? | | # ## #????????????????????????????? | | ## ### #????????????????????????????? | | ## ## #????????????????????????????????? | | ######## #### #????????????????????????????????? | +----------------------------------------------------+ Best States ------------- Heat Dissipation 25 Energy Generation 10 Energy Capacity 250 Matter Stores 300 Matter Capacity 300 Sight Range 16 Terrain Scan Range 16 Terrain Scan Density 10 Evasion (%) 40 Recoil Reduction 2 Item Schematics ----------------- None Robot Schematics ------------------ None Fabricated ------------ Nothing Alien Tech Used ----------------- None Achievements -------------- None Challenges ------------ None Game ------ Seed ArchitectSalvageGun Manual? 0 Play Time 00:28:43 Cumulative 21.9 hours Start 2024.04.04 @ 11:21:54 End 2024.04.04 @ 12:29:58 Sessions 1 Manual Loads 0 Difficulty Rogue Special Mode None Game No. 12 Rogue 12 Adventurer 0 Explorer 0 Win Type - Total 0 Types 0/0/0/0/0/0/0/0/0 Lore% 17 Gallery% 20 Achievement% 19 Wizard Run 0 Options --------- Layout 1 ASCII 0 Keyboard 1 Movement Numpad Keybinds 0 Fullscreen 2 Font 32/TamsynBold Map View 50x40 Zoom Use 0% Tactical HUD 1 Map Filters NONE Filters NONE Steam 1 RUN: 923c9998-92e0-4383-b7a1-eaa04a47574e